bitfinex/quotes_BTCUSD_20251012
["timestamp","ask_amount","ask_price","bid_price","bid_amount"]
[1760308671667,1.22815124,115420.0,115410.0,0.0025553]
[1760308671872,1.22815124,115420.0,115410.0,0.0045553]
[1760308672298,1.21192019,115420.0,115410.0,0.04878511]
[1760308672502,1.03864,115420.0,115410.0,0.04878511]
[1760308672706,1.21192019,115420.0,115410.0,0.06619504]
[1760308673219,1.21192019,115420.0,115410.0,0.0045553]
[1760308674856,1.03864,115420.0,115410.0,0.0045553]
[1760308675028,1.21192019,115420.0,115410.0,0.0045553]
[1760308675239,0.99981,115420.0,115410.0,0.2035405]
[1760308675425,0.01781,115430.0,115410.0,0.28194024]
[1760308675426,0.05676,115430.0,115410.0,0.28194024]
[1760308675627,0.05676,115430.0,115420.0,0.04620609]
[1760308675628,0.24420956,115430.0,115420.0,0.04620609]
[1760308675794,0.25952571,115430.0,115420.0,0.04620609]
[1760308675996,0.25952571,115430.0,115410.0,0.25625024]
[1760308676201,0.25952571,115430.0,115420.0,0.04620181]
[1760308677089,0.08625876,115430.0,115420.0,0.04620181]
[1760308677300,0.01781,115440.0,115430.0,0.17326518]
[1760308677478,0.02497,115430.0,115420.0,0.25246993]
[1760308677786,0.0834,115430.0,115420.0,0.23591993]
[1760308678198,0.0834,115430.0,115420.0,0.23691993]
[1760308678399,0.0834,115430.0,115420.0,0.17528019]
[1760308678777,0.09758261,115430.0,115420.0,0.17528019]
[1760308679218,0.09758261,115430.0,115420.0,0.1832987]
[1760308680264,0.09758261,115430.0,115420.0,0.22948835]
[1760308680483,1.22743779,115430.0,115420.0,0.05620816]
[1760308680691,1.21325518,115430.0,115420.0,0.01001851]
[1760308680900,1.21325518,115430.0,115420.0,0.05620816]
[1760308681322,0.01781,115440.0,115420.0,0.27193835]
[1760308681530,0.07261261,115440.0,115430.0,0.04618965]
[1760308681729,1.22742278,115440.0,115430.0,0.00801851]
[1760308681934,1.21324017,115440.0,115430.0,0.00801851]
[1760308682144,0.95659,115430.0,115420.0,0.22046984]
[1760308682341,0.04445,115430.0,115420.0,0.24615984]
[1760308682909,0.04445,115430.0,115420.0,0.26370984]
[1760308683139,0.05863261,115430.0,115420.0,0.26370984]
[1760308683341,0.05863261,115430.0,115420.0,0.23801984]
[1760308683566,0.05863261,115430.0,115420.0,0.23901984]
[1760308683772,0.09758261,115430.0,115420.0,0.22146984]
[1760308684153,0.04445,115430.0,115420.0,0.27272867]
[1760308684401,0.09758261,115430.0,115420.0,0.22848867]
[1760308684624,0.27084779,115430.0,115420.0,0.05520848]
[1760308684802,0.28569647,115430.0,115420.0,0.04081268]
[1760308685048,1.24228647,115430.0,115420.0,0.01001883]
[1760308685277,1.26835419,115430.0,115420.0,0.002]
[1760308685501,1.2393229,115430.0,115420.0,0.002]
[1760308685719,1.2393229,115430.0,115420.0,0.03079385]
[1760308685945,0.2827329,115430.0,115420.0,0.03179385]
[1760308686142,0.2827329,115430.0,115420.0,0.03279385]
[1760308686344,1.2393229,115430.0,115420.0,0.03179385]
[1760308686474,1.2393229,115430.0,115420.0,0.03279385]
[1760308686680,1.2393229,115430.0,115420.0,0.03179385]
[1760308687080,1.2393229,115430.0,115420.0,0.03279385]
[1760308687390,1.2393229,115430.0,115420.0,0.03079385]
[1760308687591,1.2393229,115430.0,115420.0,0.03179385]
[1760308687903,0.2827329,115430.0,115420.0,0.03279385]
[1760308688105,1.2393229,115430.0,115420.0,0.03279385]
[1760308688475,1.06605772,115430.0,115420.0,0.20507404]
[1760308688676,1.21325518,115430.0,115420.0,0.0779835]
[1760308689302,1.21325518,115430.0,115420.0,0.04818965]
[1760308689503,1.21325518,115430.0,115420.0,0.04718965]
[1760308689700,1.18726518,115430.0,115420.0,0.04718965]
[1760308689904,1.21223518,115430.0,115420.0,0.04818965]
[1760308690148,1.21223518,115430.0,115420.0,0.0559038]
[1760308690313,1.21223518,115430.0,115420.0,0.05590393]
[1760308690501,0.25564518,115430.0,115420.0,0.05590393]
[1760308690708,1.21223518,115430.0,115420.0,0.05590393]
[1760308690912,1.21223518,115430.0,115420.0,0.05490393]
[1760308691192,0.25564518,115430.0,115420.0,0.05490393]
[1760308691365,0.25564518,115430.0,115420.0,0.09747218]
[1760308691614,1.21223518,115430.0,115420.0,0.07438991]
[1760308691786,1.21223518,115430.0,115420.0,0.04358976]
[1760308692229,1.21223518,115430.0,115420.0,0.04258976]
[1760308692431,1.62987019,115420.0,115410.0,0.03135545]
[1760308692568,1.13572019,115420.0,115410.0,0.03135545]
[1760308692764,0.24305019,115420.0,115410.0,0.03135545]
[1760308692965,1.24311773,115420.0,115410.0,0.03135545]
[1760308693392,1.24311773,115420.0,115410.0,0.0005553]
[1760308693549,1.24311773,115420.0,115410.0,0.0015553]
[1760308694415,1.19964019,115420.0,115410.0,0.0015553]
[1760308695165,1.19964019,115420.0,115410.0,0.03235545]
[1760308695300,1.19964019,115420.0,115410.0,0.03135545]
[1760308695947,1.19964019,115420.0,115410.0,0.0775451]
[1760308696265,0.98741,115420.0,115410.0,0.26515015]
[1760308696669,0.95659,115420.0,115410.0,0.26515015]
[1760308696876,0.95659,115420.0,115410.0,0.30241015]
[1760308697283,0.95659,115420.0,115410.0,0.26515015]
[1760308697643,0.95659,115420.0,115410.0,0.2863724]
[1760308697865,0.01948,115440.0,115430.0,0.17326518]
[1760308698073,0.02406364,115450.0,115430.0,0.22976091]
[1760308698279,0.00461364,115450.0,115440.0,0.2908878]
[1760308698512,0.00461364,115450.0,115440.0,0.3165778]
[1760308698710,8.542e-05,115450.0,115440.0,0.33198066]
[1760308699334,8.542e-05,115450.0,115440.0,0.28577207]
[1760308699958,8.542e-05,115450.0,115440.0,0.68677207]
[1760308700923,8.542e-05,115450.0,115440.0,0.74941181]
[1760308701476,0.06926707,115480.0,115470.0,0.20335706]
[1760308701695,0.06931642,115480.0,115470.0,0.25287956]
[1760308701911,4.935e-05,115480.0,115470.0,0.31322956]
[1760308702175,4.935e-05,115480.0,115470.0,0.35935831]
[1760308702305,4.935e-05,115480.0,115470.0,0.32860581]
[1760308702507,4.935e-05,115480.0,115470.0,0.3441168]
[1760308702715,0.01639545,115510.0,115500.0,0.17316017]
[1760308702716,0.0002,115510.0,115500.0,0.17316017]
[1760308702984,0.00024934,115510.0,115500.0,0.25228017]
[1760308703189,0.00024934,115510.0,115500.0,0.21732017]
[1760308703386,0.04399934,115510.0,115500.0,0.17316017]
[1760308703590,0.04399934,115510.0,115500.0,0.20331207]
[1760308704276,0.04399934,115510.0,115500.0,0.24049144]
[1760308704479,0.04399934,115510.0,115500.0,0.26588144]
[1760308704680,0.01949934,115510.0,115500.0,0.26588144]
[1760308705325,0.01949934,115510.0,115500.0,0.29660419]
[1760308706283,1.22537713,115510.0,115500.0,0.01840937]
[1760308706504,1.22736585,115510.0,115500.0,0.01840937]
[1760308706729,1.05422067,115510.0,115500.0,0.01840937]
[1760308706931,1.03804934,115510.0,115500.0,0.01840937]
[1760308707427,1.22734932,115510.0,115500.0,0.01840937]
[1760308707728,1.03804934,115510.0,115500.0,0.01840937]
[1760308708083,1.21119452,115510.0,115500.0,0.01840937]
[1760308708494,1.03804934,115510.0,115500.0,0.01840937]
[1760308708920,1.21119452,115510.0,115500.0,0.01840937]
[1760308709124,1.22734535,115510.0,115500.0,0.01840937]
[1760308709783,0.27075535,115510.0,115500.0,0.01840937]
[1760308709990,1.22734535,115510.0,115500.0,0.01840937]
[1760308710191,0.04399934,115510.0,115500.0,0.24768229]
[1760308710370,0.01949934,115510.0,115500.0,0.29660419]
[1760308710702,0.03368195,115510.0,115500.0,0.29660419]
[1760308710911,0.05818195,115510.0,115500.0,0.12344402]
[1760308711308,0.05818195,115510.0,115500.0,0.09805402]
[1760308711518,0.05818195,115510.0,115500.0,0.27121419]
[1760308711895,0.05818195,115510.0,115500.0,0.09805402]
[1760308712099,1.72537713,115510.0,115500.0,0.01840937]
[1760308712332,1.21119452,115510.0,115500.0,0.04913212]
[1760308712466,0.25460452,115510.0,115500.0,0.01840937]
[1760308712675,1.21119452,115510.0,115500.0,0.04913212]
[1760308713088,1.21119452,115510.0,115500.0,0.01840937]
[1760308714352,1.21119452,115510.0,115500.0,0.04913212]
[1760308714557,0.25460452,115510.0,115500.0,0.04913212]
[1760308714792,1.21119452,115510.0,115500.0,0.04913212]
[1760308715196,1.00058934,115510.0,115500.0,0.22229229]
[1760308715375,1.00058934,115510.0,115500.0,0.25244419]
[1760308715576,1.03804934,115510.0,115500.0,0.25244419]
[1760308716376,1.03804934,115510.0,115500.0,0.29852832]
[1760308716847,1.03804934,115510.0,115500.0,0.37764832]
[1760308716848,0.00024934,115510.0,115500.0,0.37764832]
[1760308717131,0.02474934,115510.0,115500.0,0.34268832]
[1760308717367,1.05223195,115510.0,115500.0,0.25234205]
[1760308717528,0.04399934,115510.0,115500.0,0.25234205]
[1760308717725,0.05818195,115510.0,115500.0,0.25234205]
[1760308718195,0.05818195,115510.0,115500.0,0.29842618]
[1760308718590,0.05818195,115510.0,115500.0,0.25234205]
[1760308719147,0.03368195,115510.0,115500.0,0.35056107]
[1760308719356,0.00024934,115510.0,115500.0,0.38552107]
[1760308719529,0.00024934,115510.0,115500.0,0.38552098]
[1760308719722,0.00024934,115510.0,115500.0,0.35490046]
[1760308720421,0.00024934,115510.0,115500.0,0.30881633]
[1760308720665,0.00166545,115520.0,115510.0,0.17314518]
[1760308720870,0.00166545,115520.0,115510.0,0.34505108]
[1760308721072,0.00166545,115520.0,115510.0,0.37044108]
[1760308721497,0.05398655,115550.0,115540.0,0.20325212]
[1760308721702,0.00874693,115550.0,115540.0,0.38519546]
[1760308722063,0.00874693,115550.0,115540.0,0.30875638]
[1760308722273,4.934e-05,115550.0,115540.0,0.30078149]
[1760308722473,4.934e-05,115550.0,115540.0,0.40779621]
[1760308723027,4.934e-05,115550.0,115540.0,0.30078149]
[1760308723773,4.934e-05,115550.0,115540.0,0.45425496]
[1760308723971,4.934e-05,115550.0,115540.0,0.41929496]
[1760308724420,4.934e-05,115550.0,115540.0,0.45425496]
[1760308724801,0.02454934,115550.0,115540.0,0.24043149]
[1760308725002,0.04379934,115550.0,115540.0,0.32851583]
[1760308725207,0.08125934,115550.0,115540.0,0.29836393]
[1760308725408,0.08125934,115550.0,115540.0,0.22166149]
[1760308725656,0.08125934,115550.0,115540.0,0.27995096]
[1760308725903,0.08125934,115550.0,115540.0,0.13700264]
[1760308726127,1.22511719,115550.0,115540.0,0.18317914]
[1760308726348,1.21093458,115550.0,115540.0,0.0763284]
[1760308726754,0.95659,115540.0,115530.0,0.0763284]
[1760308726974,1.17121022,115540.0,115530.0,0.0763284]
[1760308727144,1.19571022,115540.0,115530.0,0.0763284]
[1760308728002,0.23912022,115540.0,115530.0,0.0763284]
[1760308728202,1.19571022,115540.0,115530.0,0.0763284]
[1760308728406,1.02261,115540.0,115530.0,0.08428745]
[1760308728593,1.02261,115540.0,115530.0,0.0763284]
[1760308729230,1.19571022,115540.0,115530.0,0.0763284]
[1760308729430,1.02261,115540.0,115530.0,0.0763284]
[1760308729732,1.19571022,115540.0,115530.0,0.0763284]
[1760308730160,1.02261,115540.0,115530.0,0.0763284]
[1760308730577,1.19571022,115540.0,115530.0,0.0763284]
[1760308730772,0.95659,115530.0,115520.0,0.29762009]
[1760308730890,0.24065992,115540.0,115520.0,0.29762009]
[1760308731097,0.04315,115530.0,115520.0,0.20328169]
[1760308731520,0.00238221,115530.0,115520.0,0.27967744]
[1760308731740,0.00238221,115530.0,115520.0,0.26439807]
[1760308731937,0.00238221,115530.0,115520.0,0.26539807]
[1760308732356,0.00238221,115530.0,115520.0,0.30818807]
[1760308732635,0.00238221,115530.0,115520.0,0.24707169]
[1760308733352,0.00238221,115530.0,115520.0,0.2550288]
[1760308734640,0.00238221,115530.0,115520.0,0.29235393]
[1760308734791,0.00718295,115530.0,115520.0,0.29235393]
[1760308735761,0.00718295,115530.0,115520.0,0.31613393]
[1760308736532,0.00480074,115530.0,115520.0,0.31613393]
[1760308736735,0.00480074,115530.0,115520.0,0.35416393]
[1760308736953,0.00480074,115530.0,115520.0,0.2930588]
[1760308737115,0.00480074,115530.0,115520.0,0.36945455]
[1760308737283,0.00480074,115530.0,115520.0,0.36149744]
[1760308737481,0.00480074,115530.0,115520.0,0.36049744]
[1760308738237,0.00480074,115530.0,115520.0,0.36149744]
[1760308740664,0.00480074,115530.0,115520.0,0.76149744]
[1760308740921,0.00480074,115530.0,115520.0,0.36149744]
[1760308742717,0.00480074,115530.0,115520.0,0.63139744]
[1760308743280,0.00092145,115530.0,115520.0,0.73824818]
[1760308743486,0.00092145,115530.0,115520.0,0.66185243]
[1760308745000,0.00092145,115530.0,115520.0,0.39195243]
[1760308745230,0.02431195,115550.0,115540.0,0.17310022]
[1760308745450,0.02431195,115550.0,115540.0,0.34882777]
[1760308745811,0.04936195,115550.0,115540.0,0.06913003]
[1760308745929,0.04936195,115550.0,115540.0,0.09928193]
[1760308746135,0.04936195,115550.0,115540.0,0.27238215]
[1760308746333,0.03517934,115550.0,115540.0,0.28819722]
[1760308746546,0.03517934,115550.0,115540.0,0.26441722]
[1760308746993,0.03517934,115550.0,115540.0,0.34423722]
[1760308746994,4.934e-05,115550.0,115540.0,0.34423722]
[1760308747200,4.934e-05,115550.0,115540.0,0.28307212]
[1760308747837,4.934e-05,115550.0,115540.0,0.38992286]
[1760308748675,0.37517934,115550.0,115540.0,0.10685074]
[1760308748874,0.56842458,115550.0,115530.0,0.07660929]
[1760308749087,0.21888861,115540.0,115530.0,0.27987639]
[1760308749442,0.21888861,115540.0,115530.0,0.10684351]
[1760308749443,0.204706,115540.0,115530.0,0.10684351]
[1760308749661,0.76301622,115540.0,115530.0,0.07669161]
[1760308749833,0.569756,115540.0,115530.0,0.24980681]
[1760308750035,0.569756,115540.0,115530.0,0.25080681]
[1760308750244,0.36505,115540.0,115530.0,0.24980681]
[1760308750443,0.34,115540.0,115530.0,0.32174871]
[1760308750742,0.36505,115540.0,115530.0,0.32912784]
[1760308750937,1.32164,115540.0,115530.0,0.21377588]
[1760308751127,0.36505,115540.0,115530.0,0.28004034]
[1760308751327,0.36505,115540.0,115530.0,0.28104034]
[1760308751701,0.36505,115540.0,115530.0,0.28204034]
[1760308752742,0.36505,115540.0,115530.0,0.32383034]
[1760308753309,0.01012934,115550.0,115540.0,0.20325212]
[1760308753447,0.02431195,115550.0,115540.0,0.30652996]
[1760308753650,0.01012934,115550.0,115540.0,0.24504212]
[1760308754018,4.934e-05,115550.0,115540.0,0.35984536]
[1760308754779,4.934e-05,115550.0,115540.0,0.28307212]
[1760308756902,4.934e-05,115550.0,115540.0,0.24504212]
[1760308757089,4.934e-05,115550.0,115540.0,0.30650975]
[1760308757295,4.934e-05,115550.0,115540.0,0.28307212]
[1760308757513,4.934e-05,115550.0,115540.0,0.35984536]
[1760308759779,4.934e-05,115550.0,115540.0,0.28307212]
[1760308760029,0.00050013,115550.0,115540.0,0.35984536]
[1760308760247,0.00050013,115550.0,115540.0,0.28307212]
[1760308761618,0.01021013,115550.0,115540.0,0.30651124]
[1760308761876,0.00050013,115550.0,115540.0,0.34079124]
[1760308762097,0.00050013,115550.0,115540.0,0.27932212]
[1760308762753,0.00050013,115550.0,115540.0,0.34079505]
[1760308763406,0.00050013,115550.0,115540.0,0.27932212]
[1760308763674,0.00050013,115550.0,115540.0,0.35609536]
[1760308764812,0.20662537,115550.0,115540.0,0.12493514]
[1760308765049,1.52300537,115550.0,115540.0,0.09164978]
[1760308765302,1.52300537,115550.0,115540.0,0.11538978]
[1760308765303,1.33013013,115550.0,115540.0,0.11538978]
[1760308765514,1.33013013,115550.0,115540.0,0.30647]
[1760308765977,0.37354013,115550.0,115540.0,0.24497212]
[1760308766677,0.35021013,115550.0,115540.0,0.24497212]
[1760308767106,0.37354013,115550.0,115540.0,0.24497212]
[1760308767332,0.37354013,115550.0,115540.0,0.30647907]
[1760308767543,0.37354013,115550.0,115540.0,0.26475907]
[1760308767973,0.37354013,115550.0,115540.0,0.28849907]
[1760308769293,0.35021013,115550.0,115540.0,0.30647907]
[1760308769545,0.34050013,115550.0,115540.0,0.27925212]
[1760308769768,0.00050013,115550.0,115540.0,0.35602536]
[1760308770461,5.781e-05,115550.0,115540.0,0.35602536]
[1760308770710,5.781e-05,115550.0,115540.0,0.27925212]
[1760308771382,5.781e-05,115550.0,115540.0,0.35610918]
[1760308772050,5.781e-05,115550.0,115540.0,0.27925212]
[1760308772261,5.781e-05,115550.0,115540.0,0.35613014]
[1760308772467,5.781e-05,115550.0,115540.0,0.27925212]
[1760308772872,5.781e-05,115550.0,115540.0,0.28025212]
[1760308773073,0.0002,115560.0,115550.0,0.20323714]
[1760308773209,0.0002,115570.0,115560.0,0.20322216]
[1760308773422,0.0002,115570.0,115560.0,0.27922216]
[1760308774216,0.0002,115570.0,115560.0,0.35608329]
[1760308774620,1e-08,115570.0,115560.0,0.27922216]
[1760308774943,1e-08,115570.0,115560.0,0.38680472]
[1760308775189,1e-08,115570.0,115560.0,0.47633424]
[1760308776501,0.0002,115590.0,115580.0,0.20319221]
[1760308776647,0.00034794,115590.0,115580.0,0.29062113]
[1760308776856,0.00034794,115590.0,115580.0,0.34864111]
[1760308777718,0.00034794,115590.0,115580.0,0.35064111]
[1760308777917,0.00034794,115590.0,115580.0,0.28919337]
[1760308778219,0.00034794,115590.0,115580.0,0.33527261]
[1760308778395,0.00034794,115590.0,115580.0,0.33727261]
[1760308778572,0.00034794,115590.0,115580.0,0.29119337]
[1760308779000,0.00034794,115590.0,115580.0,0.28919337]
[1760308779191,0.00034794,115590.0,115580.0,0.33424854]
[1760308779390,0.00034794,115590.0,115580.0,0.33524854]
[1760308780240,0.00034794,115590.0,115580.0,0.36594862]
[1760308780973,0.00034794,115590.0,115580.0,0.28974155]
[1760308781178,0.02367794,115590.0,115580.0,0.27849055]
[1760308781385,0.35876356,115600.0,115590.0,0.17302534]
[1760308781588,1.33868356,115600.0,115590.0,0.25776067]
[1760308781785,1.33835762,115600.0,115590.0,0.25776067]
[1760308781947,1.33835762,115600.0,115590.0,0.28791257]
[1760308782285,1.33835762,115600.0,115590.0,0.2572189]
[1760308782587,1.33835762,115600.0,115590.0,0.25021774]
[1760308783089,1.511368,115600.0,115590.0,0.0781924]
[1760308784798,1.33835762,115600.0,115590.0,0.0781924]
[1760308785152,1.33835762,115600.0,115590.0,0.27541774]
[1760308785354,1.33835762,115600.0,115590.0,0.26915774]
[1760308786104,1.511368,115600.0,115590.0,0.0781924]
[1760308786507,1.529908,115600.0,115590.0,0.0781924]
[1760308786708,1.511368,115600.0,115590.0,0.0781924]
[1760308786991,1.529908,115600.0,115590.0,0.0781924]
[1760308787337,1.51058295,115600.0,115590.0,0.1023924]
[1760308787537,1.33757257,115600.0,115590.0,0.2834032]
[1760308787762,1.33757257,115600.0,115590.0,0.3013432]
[1760308788036,0.38098257,115600.0,115590.0,0.2993432]
[1760308788239,0.38098257,115600.0,115590.0,0.3003432]
[1760308788466,0.00757257,115600.0,115590.0,0.2887127]
[1760308788671,0.0002,115610.0,115600.0,0.20316228]
[1760308788877,0.00898138,115610.0,115600.0,0.2674372]
[1760308789080,0.00898138,115610.0,115600.0,0.32579402]
[1760308789280,0.34898138,115610.0,115600.0,0.27982228]
[1760308789514,0.00898138,115610.0,115600.0,0.27982228]
[1760308789891,0.0002,115610.0,115600.0,0.34127002]
[1760308790918,0.0012,115610.0,115600.0,0.34127002]
[1760308791730,0.0012,115610.0,115600.0,0.27982228]
[1760308792371,0.0012,115610.0,115600.0,0.28779344]
[1760308793988,0.0012,115610.0,115600.0,0.34901403]
[1760308794612,0.0012,115610.0,115600.0,0.3337069]
[1760308794899,0.0012,115610.0,115600.0,0.34901139]
[1760308795907,0.0012,115610.0,115600.0,0.09617086]
[1760308795908,0.03538,115610.0,115600.0,0.09617086]
[1760308796137,0.0012,115610.0,115600.0,0.09617086]
[1760308796269,0.0012,115610.0,115600.0,0.13055086]
[1760308796498,0.0012,115610.0,115600.0,0.16070276]
[1760308797154,0.0012,115610.0,115600.0,0.29933314]
[1760308797356,0.02567,115610.0,115600.0,0.29933314]
[1760308797483,0.0012,115610.0,115600.0,0.25341344]
[1760308797702,0.0012,115610.0,115600.0,0.28779344]
[1760308797923,0.0012,115610.0,115600.0,0.34901642]
[1760308798603,0.0012,115610.0,115600.0,0.35001642]
[1760308798811,0.0002,115610.0,115600.0,0.28879847]
[1760308799053,0.0002,115610.0,115600.0,0.36460815]
[1760308800239,0.0002,115610.0,115600.0,0.35663196]
[1760308800445,0.34898572,115620.0,115610.0,0.20314731]
[1760308800644,0.34898572,115620.0,115610.0,0.28778815]
[1760308801068,0.00898572,115620.0,115610.0,0.28778815]
[1760308801544,0.0002,115620.0,115610.0,0.36459783]
[1760308801943,0.0002,115620.0,115610.0,0.36659783]
[1760308802944,0.3402,115620.0,115610.0,0.36659783]
[1760308804407,1.52249045,115620.0,115610.0,0.07134425]
[1760308804739,1.33097,115620.0,115610.0,0.07134425]
[1760308805114,0.34,115620.0,115610.0,0.2702883]
[1760308805344,0.34,115620.0,115610.0,0.28080731]
[1760308805546,0.00894765,115630.0,115610.0,0.28080731]
[1760308805547,0.0002,115630.0,115620.0,0.17298045]
[1760308805753,0.0002,115640.0,115630.0,0.17296549]
[1760308805956,0.0002,115640.0,115630.0,0.24962549]
[1760308807614,0.0002,115640.0,115630.0,0.31095143]
[1760308807973,0.0002,115640.0,115630.0,0.24962549]
[1760308808777,0.0002,115640.0,115630.0,0.31095143]
[1760308809407,0.0002,115640.0,115620.0,0.25260639]
[1760308809408,0.51315053,115640.0,115620.0,0.25260639]
[1760308809615,0.3402,115640.0,115630.0,0.17296549]
[1760308809827,0.3402,115640.0,115630.0,0.24962549]
[1760308810026,0.3402,115640.0,115630.0,0.27977739]
[1760308810449,0.3402,115640.0,115630.0,0.34110333]
[1760308810651,0.3402,115640.0,115630.0,0.27977739]
[1760308814672,0.3402,115640.0,115630.0,0.0183]
[1760308814911,0.283227,115620.0,115610.0,0.12912707]
[1760308815094,0.34,115630.0,115620.0,0.19128045]
[1760308815254,0.34,115630.0,115620.0,0.24541235]
[1760308815474,0.34,115630.0,115620.0,0.27979235]
[1760308815688,0.17315853,115640.0,115630.0,0.0301519]
[1760308816047,0.51315853,115640.0,115630.0,0.24539739]
[1760308816716,0.3402,115640.0,115630.0,0.27977739]
[1760308816946,0.0002,115640.0,115630.0,0.27977739]
[1760308817416,0.18180786,115650.0,115640.0,0.20310243]
[1760308817417,0.5129384,115650.0,115640.0,0.20310243]
[1760308817617,0.1729384,115650.0,115640.0,0.27976243]
[1760308817857,0.5129384,115650.0,115640.0,0.27976243]
[1760308818064,0.5129384,115650.0,115640.0,0.24538243]
[1760308818237,0.5129384,115650.0,115640.0,0.21523053]
[1760308818971,0.34,115650.0,115640.0,0.28279243]
[1760308819185,0.51293558,115650.0,115640.0,0.28279243]
[1760308819384,0.34979502,115650.0,115640.0,0.28279243]
[1760308819810,0.35079502,115650.0,115640.0,0.28279243]
[1760308820111,0.5237306,115650.0,115640.0,0.24538243]
[1760308820546,0.51295053,115640.0,115630.0,0.0484519]
[1760308820753,0.34,115640.0,115630.0,0.28375739]
[1760308822749,0.18173069,115650.0,115640.0,0.17295053]
[1760308823003,0.52173069,115650.0,115640.0,0.21528053]
[1760308823173,0.34879502,115650.0,115640.0,0.21528053]
[1760308823397,0.34879502,115650.0,115640.0,0.28284243]
[1760308824375,0.34979502,115650.0,115640.0,0.28284243]
[1760308824639,0.35079502,115650.0,115640.0,0.28284243]
[1760308829809,2.6e-07,115660.0,115650.0,0.17293558]
[1760308830062,0.18710387,115660.0,115650.0,0.21526558]
[1760308830367,0.16973555,115660.0,115650.0,0.21526558]
[1760308830569,0.18391816,115660.0,115650.0,0.21526558]
[1760308831430,0.16973555,115660.0,115650.0,0.21526558]
[1760308831655,0.283227,115660.0,115650.0,0.25267558]
[1760308831878,0.01867543,115670.0,115660.0,0.17290716]
[1760308832125,0.002,115660.0,115650.0,0.25789748]
[1760308832341,0.002,115660.0,115650.0,0.28282748]
[1760308832571,0.01060056,115660.0,115650.0,0.28282748]
[1760308832804,0.17292062,115660.0,115650.0,0.28282748]
[1760308833227,0.17292062,115660.0,115650.0,0.0724819]
[1760308833443,0.17292062,115660.0,115650.0,0.24541748]
[1760308833650,0.17392062,115660.0,115650.0,0.28282748]
[1760308833907,0.17492062,115660.0,115650.0,0.28282748]
[1760308834334,0.17492062,115660.0,115650.0,0.1098919]
[1760308835212,0.17295053,115640.0,115630.0,0.0183]
[1760308835428,0.17295053,115640.0,115630.0,0.04323]
[1760308835642,0.17296549,115630.0,115620.0,0.0174]
[1760308835885,0.17296549,115630.0,115620.0,0.19038045]
[1760308836112,0.17296549,115630.0,115620.0,0.0724819]
[1760308836331,0.51296549,115630.0,115620.0,0.24546235]
[1760308836590,0.34,115630.0,115620.0,0.28287235]
[1760308836797,0.34,115630.0,115620.0,0.25272045]
[1760308837009,0.34,115630.0,115620.0,0.28287235]
[1760308837228,0.51296549,115630.0,115620.0,0.28287235]
[1760308837434,0.34,115630.0,115620.0,0.28287235]
[1760308837645,0.51296549,115630.0,115620.0,0.28287235]
[1760308838333,0.51296549,115630.0,115620.0,0.0724819]
[1760308839648,0.51296549,115630.0,115620.0,0.24546235]
[1760308840528,0.51296549,115630.0,115620.0,0.28287235]
[1760308842091,0.34,115630.0,115620.0,0.28287235]
[1760308845414,0.45617899,115640.0,115620.0,0.07974]
[1760308845610,0.17296549,115630.0,115620.0,0.28286723]
[1760308846266,0.17411549,115630.0,115620.0,0.0301519]
[1760308847115,0.17298045,115620.0,115610.0,0.05896]
[1760308847481,0.17413045,115620.0,115610.0,0.04170791]
[1760308847568,0.283227,115620.0,115610.0,0.12318791]
[1760308847776,0.283227,115620.0,115610.0,0.29618332]
[1760308847977,0.283227,115620.0,115610.0,0.32633522]
[1760308848234,0.34,115630.0,115610.0,0.32633522]
[1760308848474,0.51296575,115630.0,115620.0,0.19211045]
[1760308848663,0.51411575,115630.0,115620.0,0.17298045]
[1760308849848,0.283227,115620.0,115610.0,0.24585522]
[1760308850047,0.284377,115620.0,115610.0,0.24485522]
[1760308850406,0.623227,115630.0,115620.0,0.17298045]
[1760308850692,0.624377,115630.0,115620.0,0.17298045]
[1760308850842,0.624377,115630.0,115620.0,0.19767045]
[1760308852060,0.623227,115630.0,115620.0,0.19767045]
[1760308852429,0.34,115640.0,115630.0,0.17296082]
[1760308852551,0.34115,115640.0,115630.0,0.19765082]
[1760308852760,0.51410053,115640.0,115630.0,0.19765082]
[1760308853573,0.51410053,115640.0,115630.0,0.20568289]
[1760308854225,0.51410053,115640.0,115630.0,0.00803207]
[1760308854437,0.79732753,115640.0,115630.0,0.00803207]
[1760308854662,0.34,115630.0,115620.0,0.19172045]
[1760308855085,0.34115,115630.0,115620.0,0.21641045]
[1760308855611,0.51411549,115630.0,115620.0,0.21641045]
[1760308856293,0.00115,115630.0,115620.0,0.21641045]
[1760308856512,0.01533261,115630.0,115620.0,0.21641045]
[1760308856723,0.01418261,115630.0,115620.0,0.22444421]
[1760308856906,0.01418261,115630.0,115620.0,0.26262421]
[1760308857110,0.51295053,115640.0,115630.0,0.17296549]
[1760308857250,0.51295053,115640.0,115630.0,0.19170549]
[1760308857475,0.51410053,115640.0,115630.0,0.21639549]
[1760308857733,0.51295053,115640.0,115630.0,0.21639549]
[1760308857939,0.51410053,115640.0,115630.0,0.21639549]
[1760308858079,0.34115,115640.0,115630.0,0.21639549]
[1760308858703,0.51410053,115640.0,115630.0,0.21639549]
[1760308858903,0.34115,115640.0,115630.0,0.21639549]
[1760308859110,0.51410053,115640.0,115630.0,0.21639549]
[1760308859285,0.34,115640.0,115630.0,0.21639549]
[1760308859660,0.34,115640.0,115630.0,0.22442773]
[1760308860209,0.51410053,115640.0,115630.0,0.05146224]
[1760308860580,0.79804753,115640.0,115630.0,0.00803224]
[1760308860916,0.623227,115640.0,115630.0,0.26260773]
[1760308861160,0.51295053,115640.0,115630.0,0.22442773]
[1760308861338,0.51295053,115640.0,115630.0,0.26260773]
[1760308861722,0.34,115640.0,115630.0,0.26260773]
[1760308863272,0.51295053,115640.0,115630.0,0.22442773]
[1760308863489,0.51410053,115640.0,115630.0,0.22442773]
[1760308863843,0.34115,115640.0,115630.0,0.22442773]
[1760308864087,0.51295053,115640.0,115630.0,0.22442773]
[1760308864301,0.34,115640.0,115630.0,0.22442773]
[1760308865410,0.51410053,115640.0,115630.0,0.22442773]
[1760308865609,0.79732753,115640.0,115630.0,0.22442773]
[1760308865826,0.51410053,115640.0,115630.0,0.00803224]
[1760308866013,0.79804753,115640.0,115630.0,0.00803224]
[1760308866681,0.79804753,115640.0,115610.0,0.19188208]
[1760308866682,0.34,115620.0,115610.0,0.19188208]
[1760308866881,0.34,115620.0,115610.0,0.21657208]
[1760308867899,0.34,115620.0,115610.0,0.25475208]
[1760308868035,0.34,115620.0,115610.0,0.21857208]
[1760308868742,0.51413045,115620.0,115610.0,0.21857208]
[1760308868960,0.51413045,115620.0,115610.0,0.19983332]
[1760308869159,0.51413045,115620.0,115610.0,0.17514332]
[1760308869365,0.51413045,115620.0,115610.0,0.19983332]
[1760308870333,0.34115,115620.0,115610.0,0.19983332]
[1760308870456,0.51413045,115620.0,115610.0,0.19983332]
[1760308871394,0.34115,115620.0,115610.0,0.21857332]
[1760308871941,0.34,115620.0,115610.0,0.25675332]
[1760308872556,0.34,115620.0,115610.0,0.22661464]